Cogmind - Beta 14 @@@ ROGUE MODE // 2024.12.17 @ 21:57:28 Player: GR4C3 Result: Destroyed by Y-45 Defender with Beam Rifle Performance ------------- Evolutions (2) 1000 Regions Visited (6) 1200 Robots Destroyed (20) 100 Value Destroyed (391) 391 Prototype IDs (3) 60 Alien Tech Used (0) 0 Bonus (42) 42 TOTAL SCORE: 2793 Bonus ------- Follower Combat Kills 42 Cogmind --------- Core Integrity 0/550 Matter 285/300 Energy 100/100 System Corruption 0% Temperature Cool (9) Movement Core (50) Location -8/Storage Parts ------- > --- POWER (1) -------- (None) > --- PROPULSION (3) --- (None) > --- UTILITY (4) ------ Signal Interpreter Makeshift Terrain Scan Processor > --- WEAPON (3) ------- Maul > --- INVENTORY (5) ---- (None) Peak State ------------ > --- POWER ------------ Ion Engine > --- PROPULSION ------- Aluminum Leg Carbon-fiber Leg > --- UTILITY ---------- Makeshift Sensor Array Signal Interpreter Thief Drone Bay > --- WEAPON ----------- Arc Projector Flak Gun Grenade Launcher > --- INVENTORY -------- Small Storage Unit Makeshift Terrain Scan Processor Beamcaster [Rating: 30] Favorites ----------- Power Ion Engine Engine Ion Engine Power Core Nuclear Core Propulsion Aluminum Leg Leg Aluminum Leg Utility Signal Interpreter Device Makeshift Sensor Array Storage Small Storage Unit Processor Signal Interpreter Weapon Grenade Launcher Energy Gun Beamcaster Ballistic Gun Makeshift Shrapnel Gun Launcher Grenade Launcher Impact Weapon Maul Build | -11 -10 -10 -10 -9 -8 -8 ------- Run | Yrd Mat Min Exi Min Mat Sto Slots Evolved 4 | . . . . . 4 . Power . | . . . . . . . Propulsion 1 | . . . . . 1 . Utility 2 | . . . . . 2 . Weapon 1 | . . . . . 1 . Parts Attached 22 | 6 2 . 2 2 8 2 Power 2 | 1 . . . . 1 . Engine 1 | 1 . . . . . . Core 1 | . . . . . 1 . Reactor . | . . . . . . . Propulsion 5 | 2 . . . 1 1 1 Treads . | . . . . . . . Leg 5 | 2 . . . 1 1 1 Wheel . | . . . . . . . Hover . | . . . . . . . Flight . | . . . . . . . Utility 7 | 1 1 . 1 . 4 . Device 4 | 1 . . 1 . 2 . Storage 1 | . . . . . 1 . Processor 2 | . 1 . . . 1 . Hackware . | . . . . . . . Protection . | . . . . . . . Artifact . | . . . . . . . Weapon 8 | 2 1 . 1 1 2 1 Energy Gun 2 | . . . . . 2 . Energy Cannon . | . . . . . . . Ballistic Gun 4 | 2 . . 1 1 . . Ballistic Cannon . | . . . . . . . Launcher 1 | . 1 . . . . . Special Weapon . | . . . . . . . Impact Weapon 1 | . . . . . . 1 Slashing Weapon . | . . . . . . . Piercing Weapon . | . . . . . . . Special Melee Weapon . | . . . . . . . Unidentified Prototypes 1 | . . . . . 1 . Parts Lost 12 | . . . . . 10 2 Power 2 | . . . . . 2 . Propulsion 4 | . . . . . 3 1 Utility 2 | . . . . . 1 1 Weapon 4 | . . . . . 4 . Highest Loss Streak 6 | . . . . . 6 5 To Critical Strikes . | . . . . . . . Average Slot Usage (%) 92 | . 96 100 100 100 63 30 Engine 11 | . 14 14 14 14 2 . Leg 24 | . 28 28 28 28 9 4 Device 14 | . 14 14 14 14 21 1 Processor 13 | . 10 14 14 14 9 18 Energy Gun 1 | . . . . . 8 . Ballistic Gun 13 | . 24 14 14 14 3 . Launcher 10 | . 3 14 14 14 2 . Peak Build Rating 30 | 8 9 9 17 20 30 12 Average Rating 14 | 6 8 9 12 17 27 9 On Entrance 10 | . 8 9 9 17 20 12 Naked Turns . | . . . . . . . Heaviest Build 25 | 9 11 11 15 17 25 5 Greatest Support 25 | 20 20 20 20 25 25 17 Greatest Overweight (x) 6 | . . . . . 6 1 Average Overweight (x) . | . . . . . . . Largest Inventory Capacity 8 | 5 5 5 5 5 8 5 Average Capacity 5 | 5 5 5 5 5 5 5 Most Carried 5 | 4 2 3 5 5 4 2 Average Carried 3 | 1 1 2 4 4 2 . Final Capacity 5 | 5 5 5 5 5 5 5 Final Carried 5 | 1 2 3 5 5 . . Class Distribution -------------------- 90% | Mutant 6% | Scavenger-Mutant 3% | Skirmisher Dominant Class ---------------- Mutant | -10/Materials Mutant | -10/Mines Mutant | -10/Exiles Mutant | -9/Mines Scavenger-Mutant | -8/Materials Mutant | -8/Storage Resources | -11 -10 -10 -10 -9 -8 -8 ----------- Run | Yrd Mat Min Exi Min Mat Sto Matter Collected 569 | 225 . 48 . 168 128 . Remotely . | . . . . . . . Salvage Created 426 | 76 . 78 . 53 185 34 Parts 42 | 8 . 6 . 9 13 6 Haulers Intercepted . | . . . . . . . Recyclers Shooed 2 | . . 2 . . . . Parts Field Recycled . | . . . . . . . Retrieved Matter . | . . . . . . . Parts Self-Destructed . | . . . . . . . Prevented . | . . . . . . . Kills | -11 -10 -10 -10 -9 -8 -8 ------- Run | Yrd Mat Min Exi Min Mat Sto Combat Hostiles Destroyed 17 | . . 2 . 6 6 3 Melee 3 | . . . . . . 3 Guns 9 | . . . . 4 5 . AOE 5 | . . 2 . 2 1 . Classes Destroyed 5 | 1 . 1 . 1 2 . Tunneler 3 | 3 . . . . . . Swarmer 12 | . . . . 6 3 3 Grunt 3 | . . 2 . . 1 . Sentry 1 | . . . . . 1 . Specialist 1 | . . . . . 1 . Best Kill Streak 4 | 1 . 2 . 4 4 3 Combat Bots Only 4 | . . 2 . 4 4 3 Max Kills in Single Turn 1 | 1 . 1 . 1 1 1 Gunslinging . | . . . . . . . Exploded 1 | . . 1 . 1 1 . Melee 1 | . . . . . . 1 Uniques/NPCs Destroyed . | . . . . . . . Combat | -11 -10 -10 -10 -9 -8 -8 -------- Run | Yrd Mat Min Exi Min Mat Sto Hostile Shots Fired 219 | . . 1 . 33 134 51 Missed 71 | . . 1 . 15 43 12 Damage Taken 1844 | . . 24 . 188 1204 428 Core 626 | . . . . 70 332 224 Absorbed by Shields . | . . . . . . . Core Remaining (%) 86 | 100 . . . 72 . . Volleys Fired 58 | 9 2 5 . 9 33 . Largest 3 | 2 2 2 . 2 3 . Hottest 158 | 40 40 50 . 58 158 . Shots Fired 83 | 18 4 7 . 11 43 . Gun 75 | 18 4 5 . 9 39 . Cannon . | . . . . . . . Launcher 8 | . . 2 . 2 4 . Special . | . . . . . . . Kinetic 41 | 18 4 5 . 9 5 . Thermal 29 | . . . . . 29 . Explosive 8 | . . 2 . 2 4 . Electromagnetic 5 | . . . . . 5 . Robot Hit Streak 6 | 4 5 2 . 3 6 . Robot Miss Streak 8 | 3 3 4 . 5 8 . Penetration Max . | . . . . . . . Secondary Targets . | . . . . . . . Shots Hit Robots 45 | 9 1 3 . 6 20 6 Core Hits 33 | 4 1 5 . 7 14 2 Critical Kills 1 | . . . . . . 1 Critical Parts Destroyed . | . . . . . . . Critical Strikes 1 | . . . . . . 1 Smash 1 | . . . . . . 1 Melee Attacks 10 | . . . . . . 10 Impact 10 | . . . . . . 10 Slashing . | . . . . . . . Piercing . | . . . . . . . Sneak Attacks . | . . . . . . . Combat Hostiles . | . . . . . . . Follow-up Attacks . | . . . . . . . Damage Inflicted 1359 | 113 10 111 . 300 595 230 Guns 652 | 113 10 28 . 96 405 . Cannons . | . . . . . . . Explosions 468 | . . 83 . 204 181 . Melee 230 | . . . . . . 230 Ramming 9 | . . . . . 9 . Kinetic 288 | 113 10 28 . 96 41 . Thermal 354 | . . . . . 354 . Explosive 468 | . . 83 . 204 181 . Electromagnetic 10 | . . . . . 10 . Impact 230 | . . . . . . 230 Slashing . | . . . . . . . Piercing . | . . . . . . . Highest Corruption . | . . . . . . . Average Corruption . | . . . . . . . Corruption Purged . | . . . . . . . Corruption Blocked . | . . . . . . . Overload Shots . | . . . . . . . Overflow Damage 60 | . . . . 3 . 57 Projectiles . | . . . . . . . Explosions 3 | . . . . 3 . . Melee 57 | . . . . . . 57 Knockbacks 1 | . . . . . . 1 Impact 1 | . . . . . . 1 Kinetic . | . . . . . . . Secondary . | . . . . . . . Self-Inflicted Damage 41 | . . 24 . . 17 . Shots 2 | . . 1 . . 1 . Rammed 3 | . . . . . 3 . Targets Rammed 3 | . . . . . 3 . Kicked . | . . . . . . . Crushed . | . . . . . . . Highest Temperature 136 | . . . . . 136 . Average Temperature 52 | . . . . . 52 . Received Heat Transfer 360 | . . . . . 279 81 Siege Activations . | . . . . . . . Robots Corrupted . | . . . . . . . Combat Hostiles . | . . . . . . . Parts Fried . | . . . . . . . Impact Corruptions 2 | . . . . . . 2 Robots Melted . | . . . . . . . Combat Hostiles . | . . . . . . . Parts Melted 1 | . . . . . 1 . Heat Transferred 629 | . . . . . 629 . Parts Sabotaged . | . . . . . . . Parts Stolen . | . . . . . . . Parts Stripped . | . . . . . . . Power Chain Reactions . | . . . . . . . Alert | -11 -10 -10 -10 -9 -8 -8 ------- Run | Yrd Mat Min Exi Min Mat Sto Peak Influence 131 | 15 24 77 . 105 131 103 Initial 38 | . 9 9 . . 21 38 Average 58 | 5 14 41 . 90 60 59 Maximum Alert Level . | . . . . . . . Low Security (%) 100 | 100 100 100 . 100 100 100 Level 1 . | . . . . . . . Level 2 . | . . . . . . . Level 3 . | . . . . . . . Level 4 . | . . . . . . . Level 5 . | . . . . . . . High Security . | . . . . . . . Max Security . | . . . . . . . Squads Dispatched 4 | . 1 . . . 3 . Investigation . | . . . . . . . Extermination . | . . . . . . . Reinforcement 4 | . 1 . . . 3 . Assault . | . . . . . . . Garrison . | . . . . . . . Intercept . | . . . . . . . Searches Triggered . | . . . . . . . Construction Impeded . | . . . . . . . Haulers Reinforced . | . . . . . . . Active Scanning Responses . | . . . . . . . Cargo Convoy Interrupts . | . . . . . . . Stealth | -11 -10 -10 -10 -9 -8 -8 --------- Run | Yrd Mat Min Exi Min Mat Sto Distress Signals . | . . . . . . . Communications Jammed . | . . . . . . . Distress Signals . | . . . . . . . Times Spotted 29 | . 1 2 . 7 14 5 Peak Tracking Total 5 | . 1 2 . 4 5 5 Tactical Retreats 3 | . . . . 1 2 . Traps | -11 -10 -10 -10 -9 -8 -8 ------- Run | Yrd Mat Min Exi Min Mat Sto Traps Triggered 1 | . . . . 1 . . Indirectly . | . . . . . . . Trap Hack Attempts . | . . . . . . . Triggered . | . . . . . . . Disarmed . | . . . . . . . Reprogrammed . | . . . . . . . Reused . | . . . . . . . Traps Extracted . | . . . . . . . Installed . | . . . . . . . Triggered . | . . . . . . . Machines | -11 -10 -10 -10 -9 -8 -8 ---------- Run | Yrd Mat Min Exi Min Mat Sto Machines Disabled 2 | . . . . . 2 . Max in Single Turn 1 | . . . . . 1 . Machines Repaired . | . . . . . . . Machines Dismantled . | . . . . . . . Machines Sabotaged . | . . . . . . . Overloaded Fab Kills . | . . . . . . . Hacking | -11 -10 -10 -10 -9 -8 -8 --------- Run | Yrd Mat Min Exi Min Mat Sto Machines Accessed 6 | . 2 . 2 2 . . Terminals 1 | . 1 . . . . . Fabricators . | . . . . . . . Repair Stations . | . . . . . . . Recycling Units 1 | . 1 . . . . . Scanalyzers . | . . . . . . . Garrison Access . | . . . . . . . Total Hacks 12 | . 2 . 8 2 . . Successful 12 | . 2 . 8 2 . . Failed . | . . . . . . . Catastrophic . | . . . . . . . Database Lockouts . | . . . . . . . Manual . | . . . . . . . Terminals 1 | . 1 . . . . . Fabricators . | . . . . . . . Repair Stations . | . . . . . . . Recycling Units 1 | . 1 . . . . . Scanalyzers . | . . . . . . . Garrison Access . | . . . . . . . Terminal Hacks 11 | . 1 . 8 2 . . Record 8 | . . . 8 . . . Prototype ID Bank 1 | . 1 . . . . . Open Door 2 | . . . . 2 . . Fabricator Hacks . | . . . . . . . Repair Station Hacks . | . . . . . . . Recycling Unit Hacks 1 | . 1 . . . . . Report Inventory 1 | . 1 . . . . . Scanalyzer . | . . . . . . . Garrison Access Hacks . | . . . . . . . Unauthorized Hacks . | . . . . . . . Terminals . | . . . . . . . Fabricators . | . . . . . . . Repair Stations . | . . . . . . . Recycling Units . | . . . . . . . Scanalyzers . | . . . . . . . Garrison Access . | . . . . . . . Data Cores Recovered . | . . . . . . . Used . | . . . . . . . Hacking Detections . | . . . . . . . Full Trace Events . | . . . . . . . Feedback Events . | . . . . . . . Feedback Blocked . | . . . . . . . Robot Schematics Acquired . | . . . . . . . Robots Built . | . . . . . . . Authchips . | . . . . . . . Time . | . . . . . . . Total Robot Build Rating . | . . . . . . . Part Schematics Acquired . | . . . . . . . Parts Built . | . . . . . . . Authchips . | . . . . . . . Time . | . . . . . . . Total Part Build Rating . | . . . . . . . Parts Repaired . | . . . . . . . Time . | . . . . . . . Parts Recycled . | . . . . . . . Recycled Matter . | . . . . . . . Retrieved Matter . | . . . . . . . Retrieved Components . | . . . . . . . Parts Scanalyzed . | . . . . . . . Part Schematics Acquired . | . . . . . . . Parts Damaged . | . . . . . . . Bothacking | -11 -10 -10 -10 -9 -8 -8 ------------ Run | Yrd Mat Min Exi Min Mat Sto Used RIF Installer . | . . . . . . . Robots Hacked . | . . . . . . . Non-combat . | . . . . . . . Combat . | . . . . . . . Robot Hacks Applied . | . . . . . . . Relay Couplers Released . | . . . . . . . Fabnet Peak Effective % . | . . . . . . . Robots Rewired . | . . . . . . . Allies Hacked . | . . . . . . . Hacks Repelled . | . . . . . . . Allies | -11 -10 -10 -10 -9 -8 -8 -------- Run | Yrd Mat Min Exi Min Mat Sto Total Allies 2 | . . . . 2 . . Largest Group 2 | . . . . 2 1 . Highest-Rated Group 45 | . . . . 45 31 . Highest-Rated Ally 31 | . . . . 31 31 . Total Orders . | . . . . . . . Ally Attacks 24 | . . . . . 24 . Total Damage 121 | . . . . . 121 . Kills 1 | . . . . . 1 . Allies Corrupted . | . . . . . . . Allies Melted . | . . . . . . . Intel | -11 -10 -10 -10 -9 -8 -8 ------- Run | Yrd Mat Min Exi Min Mat Sto Robot Analysis Total . | . . . . . . . Derelict Logs Recovered 1 | . . . . 1 . . Drone Launches 3 | . . . . . 3 . Drone Recoveries . | . . . . . . . Exploration | -11 -10 -10 -10 -9 -8 -8 ------------- Run | Yrd Mat Min Exi Min Mat Sto Turns Passed 2060 | 116 217 110 760 524 274 59 Spaces Moved 1485 | 69 164 80 627 403 114 28 Core 42 | 9 . . . . 10 23 Treads . | . . . . . . . Legs 1443 | 60 164 80 627 403 104 5 Wheels . | . . . . . . . Hover . | . . . . . . . Flight . | . . . . . . . Fastest Speed 50 | 50 120 120 120 120 90 50 Average Speed 121 | 110 120 120 120 120 149 89 Slowest Speed 350 | 120 120 120 120 120 350 130 Overloaded Moves . | . . . . . . . Propulsion Burnouts . | . . . . . . . Robots Hopped . | . . . . . . . Cave-ins Triggered . | . . . . . . . Exploration Rate (%) 30 | 3 18 15 92 67 13 7 Regions Visited 6 Branch Regions 4 Pre-discovered Areas 2 | . . 1 1 . . . Known Exits Taken 5 | . 1 1 1 1 1 . Unknown Exits Taken 1 | 1 . . . . . . Scrap Searched 1 | . . . . 1 . . Spaces Dug . | . . . . . . . Terrain Destroyed 48 | . . 18 . . 30 . Melee . | . . . . . . . Projectile 3 | . . . . . 3 . AOE 45 | . . 18 . . 27 . Terrain Rammed . | . . . . . . . Walls Destroyed . | . . . . . . . Machines Disabled . | . . . . . . . Actions | -11 -10 -10 -10 -9 -8 -8 --------- Run | Yrd Mat Min Exi Min Mat Sto Total 1652 | 92 180 87 634 438 179 42 Wait 44 | 2 11 2 . 15 14 . Move 1479 | 68 163 79 626 402 113 28 Hop . | . . . . . . . Pick Up 24 | 7 2 1 4 4 4 2 Fast Attach . | . . . . . . . Attach 17 | 6 1 . . . 8 2 Detach 1 | . . . . . 1 . Swap 5 | . 1 . 2 2 . . Drop 11 | . . . 2 6 3 . Fire 58 | 9 2 5 . 9 33 . Melee 10 | . . . . . . 10 Ram 3 | . . . . . 3 . Kick . | . . . . . . . Crush . | . . . . . . . Escape Stasis . | . . . . . . . Rewire . | . . . . . . . Trap . | . . . . . . . Miscellaneous . | . . . . . . . Route ------- -11/Scrapyard -10/Materials -10/Mines (discovered 2 exits: *Mat / *Exi) -10/Exiles (discovered 2 exits: *Min x2) -9/Mines -8/Materials -8/Storage History --------- Turn | Location | Event 2 | -11/Scrapyard | Met Revision 17 11 | -11/Scrapyard | Discovered new exit (range 15) 117 | -11/Scrapyard | Entered Materials 189 | -10/Materials | Discovered new exit (range 16) 311 | -10/Materials | Build established: Mutant 333 | -10/Materials | Identified exit to Mines 334 | -10/Materials | Entered Mines 335 | -10/Mines | Learned location of Storage (-8) 381 | -10/Mines | Discovered new exit (range 6) 411 | -10/Mines | Identified exit to Materials 438 | -10/Mines | Deemed a non-threat by the Exiles lab entrance 439 | -10/Mines | Discovered new exit (range 5) 443 | -10/Mines | Identified exit to Exiles 444 | -10/Mines | Entered Exiles 444 | -10/Exiles | Found Exiles lab destroyed 462 | -10/Exiles | Discovered new exit (range 15) 650 | -10/Exiles | Learned location of Zion (-7) 866 | -10/Exiles | Discovered new exit (range 14) 880 | -10/Exiles | Identified exit to Mines 1204 | -10/Exiles | Entered Mines 1270 | -9/Mines | Found the Drone Emporium 1277 | -9/Mines | Found Prototype Device 1437 | -9/Mines | Found a hidden stash of uninstalled traps 1552 | -9/Mines | Met a Derelict who couldn't figure out how to use a Trap Extractor 1716 | -9/Mines | Discovered new exit (range 11) 1727 | -9/Mines | Identified exit to Materials 1728 | -9/Mines | Entered Materials 1728 | -8/Materials | Accompanied by 1 ally 1728 | -8/Materials | Evolved 4 slots: Propulsion x1, Utility x2, Weapon x1 1728 | -8/Materials | Identified Thief Drone Bay 1729 | -8/Materials | Identified exit to Storage 1733 | -8/Materials | Led the pair of lost Derelicts to an unsafe place 1859 | -8/Materials | Lost 6 parts (1p2n3w) 1927 | -8/Materials | Lost 3 allies 2000 | -8/Materials | Core integrity fell below 50% 2002 | -8/Materials | Entered Storage 2046 | -8/Storage | Core integrity fell below 20% 2047 | -8/Storage | Lost 5 parts (1p1n2u1w) 2061 | -8/Storage | Destroyed by Y-45 Defender with Beam Rifle Last Messages --------------- 01979_ VSS Leg destroyed. 01995_ Beamcaster destroyed. 01996_ Slammed into G-47 Trooper. 02001_ Imp. Heat Sink destroyed. LOCATION=STORAGE GOAL=ESCAPE 02016_ Mak. Sensor Array destroyed. 02019_ Acquired Maul. 02022_ Acquired Titanium Leg. 02031_ Destroyed Flight Unit. 02031_ S-10 Pest system corrupted by crushing effect. 02031_ S-10 Pest knocked back. 02037_ S-10 Pest suffers critical hit (Smash). 02037_ S-10 Pest destroyed. 02052_ Titanium Leg destroyed. 02058_ Destroyed Flight Unit. 02058_ S-10 Pest system corrupted by crushing effect. 02058_ S-10 Pest destroyed. Map ----- +----------------------------------------------------+ | ??????????????????????????????? | | ??????????????????????????????? | | ??????????????????????????????? | | ??????????????????????????????? | | ??????????????????????????????? | | ??????????????????????????????? | | ??????????????????????????????? | | ??????????????????????????????? | | ???????#####??????????????????? | | ???????# #??????????????????? | | ???????# #??????????????????? | | ???????# #??????????????????? | | ???????# #??????????????????? | | ???????# #??????????????????? | | ???????# #??????????????????? | | ???????# #??????????????????? | | ???###?# #??????????????????? | | #### ### #??????????????????? | | # !# #??????????????????? | | # # #??????????????????? | | # # #??????????????????? | | # Y # #??????????????????? | | # !!/ # #??????????????????? | | # !!/%#= #??????????????????? | | # ! =*s% +??????????????????? | | # @# #??????????????????? | | # # #??????????????????? | | # # #??????????????????? | | # # #??????????????????? | | # # #??????????????????? | | # # #??????????????????? | | ######## #??????????????????? | | ???????? #??????????????????? | | ???????? #??????????????????? | | ???????? #??????????????????? | | ???????? #??????????????????? | | ???????? #??????????????????? | | ???????? /??????????????????? | | ???????? ???????????????????? | | ??????????????????????????????? | | ??????????????????????????????? | | ??????????????????????????????? | | ??????????????????????????????? | | ??????????????????????????????? | | ??????????????????????????????? | | ??????????????????????????????? | | ??????????????????????????????? | | ??????????????????????????????? | | ??????????????????????????????? | | ??????????????????????????????? | +----------------------------------------------------+ Best States ------------- Heat Dissipation 45 Energy Generation 14 Energy Capacity 250 Matter Stores 300 Matter Capacity 300 Sight Range 16 Robot Scan Range 19 Terrain Scan Range 16 Terrain Scan Density 135 Evasion (%) 55 Item Schematics ----------------- None Robot Schematics ------------------ None Fabricated ------------ Nothing Alien Tech Used ----------------- None Achievements -------------- None Challenges ------------ None Game ------ Seed VampiricNeutrinoTrident Manual? 0 Play Time 00:24:19 Cumulative 78.3 hours Start 2024.12.17 @ 21:32:33 End 2024.12.17 @ 21:57:28 Sessions 1 Manual Loads 0 Difficulty Rogue Special Mode None Game No. 62 Rogue 48 Adventurer 14 Explorer 0 Win Type - Total 0 Types 0/0/0/0/0/0/0/0/0 Lore% 19 Gallery% 39 Achievement% 28 Wizard Run 0 Options --------- Layout 1 ASCII 0 Keyboard 0 Movement Mouse Keybinds 0 Fullscreen 2 Font 16/SmallcapsGlow Map View 53x36 Zoom Use 0% Tactical HUD 1 Map Filters NONE Filters NONE Steam 1 RUN: 82dc3db8-cc17-4fad-a410-e7202b725c00